[Event "Early-Titled-Tuesday-Blitz-November-28-2023"]
[Site "Chess.com"]
[Date "2023.11.28"]
[Round "6"]
[White "Tsomaia_Nikoloz"]
[Black "parintele_chess"]
[Result "0-1"]
[WhiteElo "2346"]
[BlackElo "2204"]
[TimeControl "180+1"]
[EndTime "9:15:47 PST"]
[Termination "parintele_chess won by resignation"]

1. e4 {[%clk 0:03:00.9]} 1... c5 {[%clk 0:02:59.3]} 2. Nf3 {[%clk 0:03:00.6]}
2... Nc6 {[%clk 0:02:59.7]} 3. Bb5 {[%clk 0:02:59.5]} 3... e6 {[%clk 0:02:59.8]}
4. O-O {[%clk 0:02:57.5]} 4... Nge7 {[%clk 0:03:00]} 5. Re1 {[%clk 0:02:57.8]}
5... a6 {[%clk 0:03:00]} 6. Bf1 {[%clk 0:02:57.7]} 6... g6 {[%clk 0:02:58.3]} 7.
c3 {[%clk 0:02:55.8]} 7... Bg7 {[%clk 0:02:58.1]} 8. d4 {[%clk 0:02:50.6]} 8...
cxd4 {[%clk 0:02:58.3]} 9. cxd4 {[%clk 0:02:51.5]} 9... d5 {[%clk 0:02:58.6]}
10. e5 {[%clk 0:02:51.8]} 10... O-O {[%clk 0:02:55.8]} 11. Nc3 {[%clk 0:02:48]}
11... Nf5 {[%clk 0:02:51.3]} 12. Bg5 {[%clk 0:02:25]} 12... Qb6 {[%clk
0:02:35.1]} 13. Na4 {[%clk 0:02:24.5]} 13... Qa7 {[%clk 0:02:34.8]} 14. Be3
{[%clk 0:02:08.9]} 14... Nxe3 {[%clk 0:02:32.5]} 15. fxe3 {[%clk 0:01:52.8]}
15... Bd7 {[%clk 0:02:06.3]} 16. Rc1 {[%clk 0:01:32.2]} 16... Rfc8 {[%clk
0:02:02.6]} 17. a3 {[%clk 0:01:23.4]} 17... Bf8 {[%clk 0:01:41.7]} 18. Nc5
{[%clk 0:01:08.5]} 18... b6 {[%clk 0:01:39.8]} 19. Nxa6 {[%clk 0:00:57.4]} 19...
Qb7 {[%clk 0:01:37.3]} 20. Qe2 {[%clk 0:00:28.9]} 20... Na5 {[%clk 0:00:58]} 21.
Nb4 {[%clk 0:00:22.4]} 21... Nc4 {[%clk 0:00:40.6]} 22. Nd3 {[%clk 0:00:12.7]}
22... Be7 {[%clk 0:00:38.2]} 23. Qf2 {[%clk 0:00:11.5]} 23... Rc7 {[%clk
0:00:18.8]} 24. Nd2 {[%clk 0:00:10.3]} 24... Rf8 {[%clk 0:00:16.9]} 25. Nxc4
{[%clk 0:00:10]} 25... dxc4 {[%clk 0:00:17.8]} 26. Nf4 {[%clk 0:00:06.9]} 26...
b5 {[%clk 0:00:13.7]} 27. Qg3 {[%clk 0:00:06]} 27... Bc6 {[%clk 0:00:05.9]} 28.
Be2 {[%clk 0:00:06.2]} 28... Kh8 {[%clk 0:00:05.7]} 29. Bf3 {[%clk 0:00:05.8]}
29... Bxf3 {[%clk 0:00:05.1]} 30. Qxf3 {[%clk 0:00:05.8]} 30... Qxf3 {[%clk
0:00:04.8]} 31. gxf3 {[%clk 0:00:06.7]} 31... b4 {[%clk 0:00:03.9]} 32. axb4
{[%clk 0:00:06]} 32... Bxb4 {[%clk 0:00:04.8]} 33. Re2 {[%clk 0:00:06.9]} 33...
Ra8 {[%clk 0:00:04.6]} 34. Rec2 {[%clk 0:00:06.8]} 34... Ra2 {[%clk 0:00:04.3]}
35. Rxc4 {[%clk 0:00:07.1]} 35... Rxc4 {[%clk 0:00:04.9]} 36. Rxc4 {[%clk
0:00:07.3]} 36... Bd2 {[%clk 0:00:05.5]} 37. Ng2 {[%clk 0:00:04.6]} 37... Rxb2
{[%clk 0:00:05.1]} 38. e4 {[%clk 0:00:04.9]} 38... Rb1+ {[%clk 0:00:04.2]} 39.
Kf2 {[%clk 0:00:05]} 39... Rb2 {[%clk 0:00:04.8]} 40. Kg3 {[%clk 0:00:05.3]}
40... h5 {[%clk 0:00:04.9]} 41. d5 {[%clk 0:00:04.7]} 41... exd5 {[%clk
0:00:04.6]} 42. exd5 {[%clk 0:00:05]} 42... Kg7 {[%clk 0:00:04.4]} 43. d6 {[%clk
0:00:04.5]} 43... Rb5 {[%clk 0:00:03.3]} 44. f4 {[%clk 0:00:03.7]} 44... Rd5
{[%clk 0:00:02.8]} 45. Rc7 {[%clk 0:00:03.2]} 45... Rd3+ {[%clk 0:00:03.1]} 46.
Kf2 {[%clk 0:00:03.4]} 46... Ba5 {[%clk 0:00:03.3]} 47. Ke2 {[%clk 0:00:03.2]}
47... Rd2+ {[%clk 0:00:02.3]} 48. Kf3 {[%clk 0:00:03.2]} 48... Bxc7 {[%clk
0:00:02]} 49. dxc7 {[%clk 0:00:02.9]} 49... Rc2 {[%clk 0:00:02.9]} 50. Ne3
{[%clk 0:00:03.3]} 50... Rxc7 {[%clk 0:00:03.4]} 51. h4 {[%clk 0:00:03.1]} 51...
Rc3 {[%clk 0:00:03.6]} 52. Ke4 {[%clk 0:00:03.3]} 52... Ra3 {[%clk 0:00:03.9]}
53. Kf3 {[%clk 0:00:03.5]} 53... Rb3 {[%clk 0:00:03.9]} 54. Ke4 {[%clk
0:00:03.8]} 54... Rb4+ {[%clk 0:00:04]} 55. Kf3 {[%clk 0:00:04.1]} 55... Ra4
{[%clk 0:00:04.9]} 56. Ke2 {[%clk 0:00:04.3]} 56... f6 {[%clk 0:00:05.4]} 57. e6
{[%clk 0:00:03.9]} 57... Re4 {[%clk 0:00:05]} 58. Kf3 {[%clk 0:00:03.4]} 58...
Rxe6 {[%clk 0:00:05.6]} 59. Nd5 {[%clk 0:00:02.6]} 59... Ra6 {[%clk 0:00:06.2]}
60. Ne3 {[%clk 0:00:02.8]} 60... Kf7 {[%clk 0:00:05.9]} 61. Ke4 {[%clk
0:00:03.7]} 61... Re6+ {[%clk 0:00:05.5]} 62. Kf3 {[%clk 0:00:04.1]} 62... Rxe3+
{[%clk 0:00:06.4]} 63. Kxe3 {[%clk 0:00:05]} 63... Ke6 {[%clk 0:00:06.8]} 64.
Ke4 {[%clk 0:00:05.9]} 64... f5+ {[%clk 0:00:05.1]} 65. Ke3 {[%clk 0:00:05.8]}
65... Kd5 {[%clk 0:00:03]} 66. Kd3 {[%clk 0:00:06.2]} 66... Kc5 {[%clk
0:00:03.5]} 67. Kc3 {[%clk 0:00:06.7]} 67... Kd5 {[%clk 0:00:03.4]} 68. Kd3
{[%clk 0:00:07.2]} 68... Ke6 {[%clk 0:00:02.9]} 69. Kc4 {[%clk 0:00:07.2]} 69...
Kd6 {[%clk 0:00:02.1]} 70. Kd4 {[%clk 0:00:07.7]} 70... Ke6 {[%clk 0:00:02.4]}
71. Kc4 {[%clk 0:00:08.2]} 71... Kd6 {[%clk 0:00:02.7]} 72. Kd4 {[%clk
0:00:08.7]} 72... Ke6 {[%clk 0:00:03.2]} 73. Kc5 {[%clk 0:00:09.2]} 73... Kf6
{[%clk 0:00:02.2]} 74. Kd6 {[%clk 0:00:09.3]} 74... Kf7 {[%clk 0:00:02.7]} 75.
Kd7 {[%clk 0:00:08.5]} 75... Kf6 {[%clk 0:00:03.1]} 76. Ke8 {[%clk 0:00:08.9]}
76... Ke6 {[%clk 0:00:02.8]} 77. Kf8 {[%clk 0:00:09.3]} 77... Kd5 {[%clk
0:00:03.2]} 78. Kf7 {[%clk 0:00:09.3]} 78... Ke4 {[%clk 0:00:04.1]} 79. Kxg6
{[%clk 0:00:09.9]} 79... Kxf4 {[%clk 0:00:04]} 80. Kxh5 {[%clk 0:00:10.6]} 80...
Kg3 {[%clk 0:00:04.3]} 81. Kg5 {[%clk 0:00:10.9]} 81... f4 {[%clk 0:00:05.2]}
82. h5 {[%clk 0:00:11.8]} 82... f3 {[%clk 0:00:06.1]} 83. h6 {[%clk 0:00:12.7]}
83... f2 {[%clk 0:00:07]} 84. h7 {[%clk 0:00:13.6]} 84... f1=Q {[%clk
0:00:07.9]} 85. h8=Q {[%clk 0:00:14.5]} 85... Qf4+ {[%clk 0:00:07.9]} 86. Kg6
{[%clk 0:00:14.9]} 86... Qg4+ {[%clk 0:00:08]} 87. Kf7 {[%clk 0:00:14.8]} 87...
Qf4+ {[%clk 0:00:08.1]} 88. Ke6 {[%clk 0:00:15]} 88... Qe4+ {[%clk 0:00:08.2]}
89. Kd6 {[%clk 0:00:14.7]} 89... Qf4+ {[%clk 0:00:08.2]} 90. Kd5 {[%clk
0:00:14.6]} 90... Qf3+ {[%clk 0:00:08.4]} 91. Kd6 {[%clk 0:00:13.8]} 91... Qf4+
{[%clk 0:00:08.4]} 92. Kc5 {[%clk 0:00:14]} 92... Qc1+ {[%clk 0:00:08.1]} 93.
Kb4 {[%clk 0:00:13.5]} 93... Qd2+ {[%clk 0:00:07.7]} 94. Kc4 {[%clk 0:00:13.8]}
94... Qc2+ {[%clk 0:00:07.8]} 95. Kd4 {[%clk 0:00:13.5]} 95... Qb2+ {[%clk
0:00:08.1]} 96. Ke4 {[%clk 0:00:14.1]} 96... Qxh8 {[%clk 0:00:09]} 97. Ke3
{[%clk 0:00:15]} 97... Qf6 {[%clk 0:00:09]} 98. Ke4 {[%clk 0:00:15.9]} 98...
Qf4+ {[%clk 0:00:09.1]} 99. Kd5 {[%clk 0:00:16.8]} 99... Qe3 {[%clk 0:00:08.9]}
100. Kd6 {[%clk 0:00:16.8]} 100... Qe4 {[%clk 0:00:09.3]} 0-1

[Event "Early-Titled-Tuesday-Blitz-November-28-2023"]
[Site "Chess.com"]
[Date "2023.11.28"]
[Round "6"]
[White "SaqoChess_Twitch"]
[Black "OhanyanEminChess"]
[Result "0-1"]
[WhiteElo "2636"]
[BlackElo "2845"]
[TimeControl "180+1"]
[EndTime "9:15:49 PST"]
[Termination "OhanyanEminChess won on time"]

1. d4 {[%clk 0:03:00.9]} 1... Nf6 {[%clk 0:02:55.5]} 2. c4 {[%clk 0:03:01.5]}
2... Ng8 {[%clk 0:02:56.2]} 3. Nc3 {[%clk 0:03:01.2]} 3... d6 {[%clk 0:02:55.7]}
4. Nf3 {[%clk 0:03:00.2]} 4... Nd7 {[%clk 0:02:56.4]} 5. e4 {[%clk 0:03:00.1]}
5... g6 {[%clk 0:02:57.1]} 6. Be2 {[%clk 0:02:58.5]} 6... Bg7 {[%clk 0:02:57.8]}
7. Be3 {[%clk 0:02:57.5]} 7... e5 {[%clk 0:02:58]} 8. Qd2 {[%clk 0:02:56.1]}
8... Ne7 {[%clk 0:02:54.8]} 9. h4 {[%clk 0:02:54.6]} 9... h5 {[%clk 0:02:54.3]}
10. dxe5 {[%clk 0:02:53.5]} 10... Nxe5 {[%clk 0:02:52.9]} 11. Nxe5 {[%clk
0:02:53.6]} 11... Bxe5 {[%clk 0:02:53.8]} 12. Nd5 {[%clk 0:02:45.8]} 12... c6
{[%clk 0:02:51.1]} 13. Nf4 {[%clk 0:02:32.9]} 13... Bg4 {[%clk 0:02:48.8]} 14.
Bxg4 {[%clk 0:02:25.8]} 14... hxg4 {[%clk 0:02:49.7]} 15. h5 {[%clk 0:02:26.2]}
15... gxh5 {[%clk 0:02:42.2]} 16. Nxh5 {[%clk 0:02:22.5]} 16... Ng6 {[%clk
0:02:41.5]} 17. Bg5 {[%clk 0:02:17]} 17... f6 {[%clk 0:02:30.5]} 18. Be3 {[%clk
0:01:51]} 18... Qe7 {[%clk 0:01:37.1]} 19. O-O-O {[%clk 0:01:45.2]} 19... Kf7
{[%clk 0:01:35]} 20. f4 {[%clk 0:01:40]} 20... gxf3 {[%clk 0:01:34.5]} 21. gxf3
{[%clk 0:01:40.2]} 21... d5 {[%clk 0:00:49.9]} 22. exd5 {[%clk 0:01:18]} 22...
Rad8 {[%clk 0:00:47.7]} 23. f4 {[%clk 0:01:16.2]} 23... Bc7 {[%clk 0:00:44.3]}
24. Ng3 {[%clk 0:01:04.4]} 24... cxd5 {[%clk 0:00:38.9]} 25. Rxh8 {[%clk
0:00:59.9]} 25... Rxh8 {[%clk 0:00:38.4]} 26. Qxd5+ {[%clk 0:01:00]} 26... Qe6
{[%clk 0:00:09]} 27. Qxe6+ {[%clk 0:00:57.8]} 27... Kxe6 {[%clk 0:00:09.9]} 28.
f5+ {[%clk 0:00:58.5]} 28... Ke7 {[%clk 0:00:06.5]} 29. Bc5+ {[%clk 0:00:58.6]}
29... Ke8 {[%clk 0:00:07.1]} 30. Ne4 {[%clk 0:00:25.6]} 30... Ne5 {[%clk
0:00:07.1]} 31. Nxf6+ {[%clk 0:00:25.1]} 31... Kf7 {[%clk 0:00:07.4]} 32. Nd5
{[%clk 0:00:23.6]} 32... Bb8 {[%clk 0:00:03.5]} 33. Bd4 {[%clk 0:00:22.4]} 33...
Rh4 {[%clk 0:00:02.4]} 34. Bxe5 {[%clk 0:00:20.5]} 34... Bxe5 {[%clk 0:00:03.3]}
35. b3 {[%clk 0:00:14.4]} 35... Bg7 {[%clk 0:00:03.4]} 36. Kc2 {[%clk 0:00:14]}
36... Bh6 {[%clk 0:00:03.3]} 37. Rf1 {[%clk 0:00:13.3]} 37... Rh2+ {[%clk
0:00:03.6]} 38. Kd3 {[%clk 0:00:13]} 38... Rxa2 {[%clk 0:00:03.8]} 39. Re1
{[%clk 0:00:13.6]} 39... Bf8 {[%clk 0:00:03.6]} 40. Re6 {[%clk 0:00:13.6]} 40...
Rf2 {[%clk 0:00:02]} 41. Rf6+ {[%clk 0:00:14.1]} 41... Kg7 {[%clk 0:00:02]} 42.
Ke3 {[%clk 0:00:13.4]} 42... Rf1 {[%clk 0:00:02.1]} 43. Rg6+ {[%clk 0:00:13.1]}
43... Kf7 {[%clk 0:00:02.5]} 44. Rf6+ {[%clk 0:00:13.5]} 44... Kg7 {[%clk
0:00:03.2]} 45. Ke4 {[%clk 0:00:14.2]} 45... Re1+ {[%clk 0:00:03.1]} 46. Kf4
{[%clk 0:00:14.2]} 46... Rf1+ {[%clk 0:00:03.1]} 47. Ke4 {[%clk 0:00:12.5]}
47... Re1+ {[%clk 0:00:03.7]} 48. Kf3 {[%clk 0:00:12.3]} 48... Rf1+ {[%clk
0:00:04.4]} 49. Ke2 {[%clk 0:00:12.5]} 49... Rb1 {[%clk 0:00:04.2]} 50. Rg6+
{[%clk 0:00:12.5]} 50... Kf7 {[%clk 0:00:04.9]} 51. Rg3 {[%clk 0:00:12.4]} 51...
Rh1 {[%clk 0:00:04.8]} 52. Kd3 {[%clk 0:00:12.2]} 52... Rf1 {[%clk 0:00:04.7]}
53. Ke4 {[%clk 0:00:12]} 53... Re1+ {[%clk 0:00:05.4]} 54. Re3 {[%clk 0:00:12]}
54... Rh1 {[%clk 0:00:05.8]} 55. Rg3 {[%clk 0:00:09.3]} 55... Re1+ {[%clk
0:00:04.4]} 56. Kd3 {[%clk 0:00:09.3]} 56... Rf1 {[%clk 0:00:04.5]} 57. Kc3
{[%clk 0:00:09.4]} 57... Rxf5 {[%clk 0:00:03.6]} 58. Re3 {[%clk 0:00:08.4]}
58... Bc5 {[%clk 0:00:03.5]} 59. Re2 {[%clk 0:00:07.7]} 59... a5 {[%clk
0:00:03.9]} 60. Kc2 {[%clk 0:00:08]} 60... b6 {[%clk 0:00:04.1]} 61. Nc3 {[%clk
0:00:07.1]} 61... Rh5 {[%clk 0:00:03.4]} 62. Na4 {[%clk 0:00:07]} 62... Bd4
{[%clk 0:00:02.3]} 63. Rd2 {[%clk 0:00:06.9]} 63... Be3 {[%clk 0:00:02.6]} 64.
Rd3 {[%clk 0:00:06.9]} 64... Rh2+ {[%clk 0:00:02.6]} 65. Kc3 {[%clk 0:00:07]}
65... Bg1 {[%clk 0:00:02.7]} 66. Rd6 {[%clk 0:00:07]} 66... Ke7 {[%clk
0:00:02.8]} 67. Rg6 {[%clk 0:00:06.9]} 67... Rh3+ {[%clk 0:00:02.7]} 68. Kc2
{[%clk 0:00:06.5]} 68... Bd4 {[%clk 0:00:03.5]} 69. Nxb6 {[%clk 0:00:06.3]}
69... Rc3+ {[%clk 0:00:04]} 70. Kd2 {[%clk 0:00:03.2]} 70... Rxb3 {[%clk
0:00:04.4]} 71. Nd5+ {[%clk 0:00:03.2]} 71... Kd7 {[%clk 0:00:04.8]} 72. Rh6
{[%clk 0:00:02.7]} 72... Kc8 {[%clk 0:00:02.6]} 73. Ra6 {[%clk 0:00:03.3]} 73...
Ra3 {[%clk 0:00:01.7]} 74. Kc2 {[%clk 0:00:03.3]} 74... Kb7 {[%clk 0:00:02.1]}
75. Rd6 {[%clk 0:00:03.2]} 75... Bc5 {[%clk 0:00:01.6]} 76. Re6 {[%clk
0:00:03.8]} 76... a4 {[%clk 0:00:02.2]} 77. Nc3 {[%clk 0:00:04]} 77... Bb4
{[%clk 0:00:01.2]} 78. Nb5 {[%clk 0:00:04.7]} 78... Ra2+ {[%clk 0:00:01.3]} 79.
Kd3 {[%clk 0:00:04.4]} 79... Ra1 {[%clk 0:00:01.6]} 80. c5 {[%clk 0:00:04.5]}
80... Bxc5 {[%clk 0:00:01.8]} 81. Kc4 {[%clk 0:00:05.2]} 81... Bf8 {[%clk
0:00:01.8]} 82. Rf6 {[%clk 0:00:05.1]} 82... Rc1+ {[%clk 0:00:01.7]} 83. Kd5
{[%clk 0:00:04.4]} 83... Bb4 {[%clk 0:00:02.3]} 84. Nd4 {[%clk 0:00:03.5]} 84...
Rc5+ {[%clk 0:00:02.1]} 85. Ke4 {[%clk 0:00:03.6]} 85... Rc1 {[%clk 0:00:02.4]}
86. Rf7+ {[%clk 0:00:04.1]} 86... Kb6 {[%clk 0:00:02.8]} 87. Rf6+ {[%clk
0:00:03.9]} 87... Kb7 {[%clk 0:00:03.4]} 88. Rf7+ {[%clk 0:00:04.1]} 88... Kb8
{[%clk 0:00:02.5]} 89. Kd5 {[%clk 0:00:03.9]} 89... Rc5+ {[%clk 0:00:02.2]} 90.
Ke6 {[%clk 0:00:03.5]} 90... a3 {[%clk 0:00:02.5]} 91. Kd7 {[%clk 0:00:03.5]}
91... Rc7+ {[%clk 0:00:02.5]} 92. Ke8 {[%clk 0:00:02.9]} 92... Rc8+ {[%clk
0:00:02.7]} 93. Kd7 {[%clk 0:00:03]} 93... Rc7+ {[%clk 0:00:03.4]} 94. Ke6
{[%clk 0:00:03.7]} 94... Rc4 {[%clk 0:00:02]} 95. Kd5 {[%clk 0:00:03]} 95...
Rc5+ {[%clk 0:00:02.6]} 96. Ke6 {[%clk 0:00:03.2]} 96... a2 {[%clk 0:00:03.3]}
97. Rf1 {[%clk 0:00:02.9]} 97... Bc3 {[%clk 0:00:03.9]} 98. Nb3 {[%clk 0:00:03]}
98... Rb5 {[%clk 0:00:04.5]} 0-1